bitfinex-derivatives/quotes_BTCF0:USTF0_20250528
["timestamp","ask_amount","ask_price","bid_price","bid_amount"]
[1748400065383,0.66447452,108850.0,108840.0,0.3146663]
[1748400066288,0.66447452,108850.0,108840.0,0.43631942]
[1748400066493,0.66547452,108850.0,108840.0,0.86821942]
[1748400067494,0.30467452,108850.0,108840.0,0.86821942]
[1748400067797,0.12102512,108850.0,108840.0,0.89551557]
[1748400067991,0.30467452,108850.0,108840.0,0.92721557]
[1748400068178,0.12202512,108850.0,108840.0,0.92721557]
[1748400068481,0.08880512,108850.0,108840.0,0.92721557]
[1748400068881,0.08892512,108850.0,108840.0,0.92721557]
[1748400069080,0.08880512,108850.0,108840.0,0.92721557]
[1748400069388,0.08792512,108850.0,108840.0,1.16089263]
[1748400069579,0.08792512,108850.0,108840.0,1.03923951]
[1748400069779,0.08692512,108850.0,108840.0,1.03923951]
[1748400069985,0.08692512,108850.0,108840.0,1.16089263]
[1748400070379,0.08692512,108850.0,108840.0,1.38196353]
[1748400070575,0.08692512,108850.0,108840.0,1.42660273]
[1748400070793,0.08692512,108850.0,108840.0,1.47820592]
[1748400071187,0.08692512,108850.0,108840.0,1.35655201]
[1748400071395,0.27057502,108850.0,108840.0,1.34733184]
[1748400071691,0.27057502,108850.0,108840.0,0.82390471]
[1748400071885,0.27057502,108850.0,108840.0,0.94555783]
[1748400072400,0.08692512,108850.0,108840.0,0.94555783]
[1748400072688,0.08692512,108850.0,108840.0,1.48286884]
[1748400072872,0.08680512,108850.0,108840.0,1.48286884]
[1748400073077,0.08692512,108850.0,108840.0,1.48286884]
[1748400073276,0.08692512,108850.0,108840.0,1.49212202]
[1748400073492,0.08680512,108850.0,108840.0,1.49212202]
[1748400073791,0.08692512,108850.0,108840.0,1.49212202]
[1748400074289,0.08692512,108850.0,108840.0,1.53342202]
[1748400075390,0.05472512,108850.0,108840.0,1.62529402]
[1748400075693,0.02212512,108850.0,108840.0,1.77227949]
[1748400075992,0.02200512,108850.0,108840.0,1.77227949]
[1748400076286,0.02200512,108850.0,108840.0,1.70363433]
[1748400076481,0.02200512,108850.0,108840.0,1.77227949]
[1748400076683,0.02212512,108850.0,108840.0,1.77327949]
[1748400077484,0.001,108860.0,108840.0,2.09300191]
[1748400077714,0.001,108860.0,108850.0,1.21742863]
[1748400077911,0.0317,108870.0,108860.0,0.1836331]
[1748400078219,0.0317,108870.0,108860.0,1.48448017]
[1748400078709,0.03182,108870.0,108860.0,1.24117393]
[1748400078900,0.0317,108870.0,108860.0,1.48448017]
[1748400079094,0.03182,108870.0,108860.0,1.48448017]
[1748400079286,0.03182,108870.0,108860.0,1.48450205]
[1748400079493,0.03182,108870.0,108860.0,1.48550205]
[1748400079680,0.03182,108870.0,108860.0,1.36584893]
[1748400080191,0.03182,108870.0,108860.0,1.42096346]
[1748400080392,0.03630209,108870.0,108860.0,1.42096346]
[1748400080788,0.06680209,108870.0,108860.0,1.42096346]
[1748400083476,0.06680209,108870.0,108860.0,1.42090034]
[1748400084376,0.03630209,108870.0,108860.0,1.49081621]
[1748400084787,0.03630209,108870.0,108860.0,1.49081097]
[1748400085087,0.03630209,108870.0,108860.0,1.42090034]
[1748400085488,0.03630209,108870.0,108860.0,1.49080093]
[1748400085792,0.03630209,108870.0,108860.0,1.44620376]
[1748400086091,0.03630209,108870.0,108860.0,2.00116376]
[1748400086288,0.03630209,108870.0,108860.0,1.87951064]
[1748400086488,0.06750209,108870.0,108860.0,2.00116376]
[1748400086900,0.06750209,108870.0,108860.0,1.87951064]
[1748400087106,0.06750209,108870.0,108860.0,2.00116376]
[1748400088390,0.06750209,108870.0,108860.0,2.00208376]
[1748400089093,0.61191889,108870.0,108860.0,0.77474763]
[1748400089304,1.12667201,108870.0,108860.0,0.98570727]
[1748400089590,1.00501889,108870.0,108860.0,0.98570727]
[1748400089993,1.00501889,108870.0,108860.0,1.05560786]
[1748400090195,1.12667201,108870.0,108860.0,0.28823509]
[1748400090393,1.13667201,108870.0,108860.0,0.30873382]
[1748400090598,1.13767201,108870.0,108860.0,0.30873382]
[1748400091094,1.13767201,108870.0,108860.0,0.28140474]
[1748400091395,1.13867201,108870.0,108860.0,0.28140474]
[1748400092093,1.13967201,108870.0,108860.0,0.25413243]
[1748400092995,1.13967201,108870.0,108860.0,0.26805468]
[1748400093193,1.01801889,108870.0,108860.0,0.26805468]
[1748400093995,1.01801889,108870.0,108860.0,0.29538376]
[1748400094698,1.01801889,108870.0,108860.0,0.41703688]
[1748400094897,1.01789889,108870.0,108860.0,0.41703688]
[1748400095084,1.01801889,108870.0,108860.0,0.41703688]
[1748400095289,1.00789889,108870.0,108860.0,0.39653815]
[1748400095593,1.00801889,108870.0,108860.0,0.39653815]
[1748400097292,1.00801889,108870.0,108860.0,0.34478562]
[1748400097691,1.00801889,108870.0,108860.0,0.46643874]
[1748400098296,1.00801889,108870.0,108860.0,0.28280504]
[1748400098497,1.00801889,108870.0,108860.0,0.46643874]
[1748400098693,1.00801889,108870.0,108860.0,0.5074287]
[1748400099098,1.00801889,108870.0,108860.0,0.34478562]
[1748400099800,1.12967201,108870.0,108860.0,0.33086337]
[1748400101202,1.00801889,108870.0,108860.0,0.33086337]
[1748400102403,1.00801889,108870.0,108860.0,0.37185333]
[1748400103898,1.44967201,108870.0,108860.0,0.18821963]
[1748400104111,1.44967201,108870.0,108860.0,0.07053453]
[1748400104402,1.43967201,108870.0,108860.0,0.0705374]
[1748400104601,1.19967201,108870.0,108860.0,0.0705374]
[1748400104795,1.12967201,108870.0,108860.0,0.0705374]
[1748400105002,1.49967201,108870.0,108860.0,0.0705374]
[1748400105203,1.12967201,108870.0,108860.0,0.0705374]
[1748400105403,1.49967201,108870.0,108860.0,0.0705374]
[1748400105603,1.46967201,108870.0,108860.0,0.0705374]
[1748400105800,1.19967201,108870.0,108860.0,0.0705374]
[1748400106108,1.49967201,108870.0,108860.0,0.0705374]
[1748400106308,1.18967201,108870.0,108860.0,0.0705374]
[1748400107104,1.22152802,108870.0,108860.0,0.0705374]
[1748400107303,1.29152802,108870.0,108860.0,0.0705374]
[1748400107512,1.19967201,108870.0,108860.0,0.0705374]
[1748400107706,1.21351337,108870.0,108860.0,0.0705374]
[1748400111207,1.09186025,108870.0,108860.0,0.0705374]
[1748400111413,1.21351337,108870.0,108860.0,0.0705374]
[1748400113212,1.25644712,108870.0,108860.0,0.0705374]
[1748400115416,1.69744712,108870.0,108860.0,0.0705374]
[1748400116207,1.134794,108870.0,108860.0,0.37582432]
[1748400116414,1.04559889,108870.0,108860.0,0.4332534]
[1748400116609,1.04571889,108870.0,108860.0,0.445516]
[1748400116814,1.04559889,108870.0,108860.0,0.51541659]
[1748400117007,1.04571889,108870.0,108860.0,0.55640655]
[1748400117210,0.97571889,108870.0,108860.0,0.445516]
[1748400117415,0.97571889,108870.0,108860.0,0.48650596]
[1748400118418,0.97571889,108870.0,108860.0,0.45917688]
[1748400118804,0.97571889,108870.0,108860.0,0.89985688]
[1748400119906,0.58371899,108870.0,108860.0,1.30975747]
[1748400120312,0.58359899,108870.0,108860.0,1.26876751]
[1748400120518,0.58371899,108870.0,108860.0,1.26876751]
[1748400121217,0.58371899,108870.0,108860.0,1.24356482]
[1748400121425,0.58371899,108870.0,108860.0,1.24356382]
[1748400122122,0.58371899,108870.0,108860.0,1.35248382]
[1748400123417,0.58371899,108870.0,108860.0,1.41896141]
[1748400123618,0.58371899,108870.0,108860.0,1.34889644]
[1748400124011,0.58371899,108870.0,108860.0,1.41896141]
[1748400126917,0.58371899,108870.0,108860.0,1.34889644]
[1748400127121,0.58371899,108870.0,108860.0,1.41896141]
[1748400127318,0.58371899,108870.0,108860.0,1.34889644]
[1748400127319,0.55201899,108870.0,108860.0,1.34889644]
[1748400127715,0.58381899,108870.0,108860.0,1.34889644]
[1748400127917,0.58369899,108870.0,108860.0,0.34764332]
[1748400128119,0.61669899,108870.0,108860.0,0.78620332]
[1748400128311,0.61669899,108870.0,108860.0,0.34764332]
[1748400128515,0.61669899,108870.0,108860.0,0.78612332]
[1748400128819,0.61681899,108870.0,108860.0,0.78612332]
[1748400129317,0.61681899,108870.0,108860.0,0.34764332]
[1748400129518,0.61681899,108870.0,108860.0,0.78596332]
[1748400130822,0.61681899,108870.0,108860.0,0.90761644]
[1748400131122,0.61681899,108870.0,108860.0,0.90769644]
[1748400131722,0.61681899,108870.0,108860.0,0.78604332]
[1748400132021,0.61681899,108870.0,108860.0,0.34764332]
[1748400132213,0.61681899,108870.0,108860.0,0.78588332]
[1748400132820,0.61681899,108870.0,108860.0,0.77588332]
[1748400133214,0.61681899,108870.0,108860.0,0.84594829]
[1748400136219,0.61681899,108870.0,108860.0,1.33760141]
[1748400136426,0.58369899,108870.0,108860.0,1.33760141]
[1748400136629,0.58381899,108870.0,108860.0,1.33760141]
[1748400136820,0.58369899,108870.0,108860.0,1.33760141]
[1748400137025,0.58381899,108870.0,108860.0,1.33760141]
[1748400138224,0.36840209,108870.0,108860.0,1.33760141]
[1748400138428,0.19109899,108870.0,108860.0,1.27109361]
[1748400138723,0.19121899,108870.0,108860.0,1.32589603]
[1748400138929,0.19121899,108870.0,108860.0,1.68669603]
[1748400139327,0.00760209,108870.0,108860.0,1.68669603]
[1748400139527,0.00660209,108870.0,108860.0,1.68669603]
[1748400139719,0.00560209,108870.0,108860.0,1.68669603]
[1748400140028,0.00560209,108870.0,108860.0,1.56504291]
[1748400140233,0.18921899,108870.0,108860.0,0.51765603]
[1748400140526,0.03800209,108870.0,108860.0,1.42105603]
[1748400141231,0.00560209,108870.0,108860.0,1.80905603]
[1748400141420,0.00548209,108870.0,108860.0,1.80905603]
[1748400142232,0.00560209,108870.0,108860.0,1.80905603]
[1748400142526,0.00460209,108870.0,108860.0,1.81005603]
[1748400142731,0.00460209,108870.0,108860.0,2.15267622]
[1748400142924,0.00460209,108870.0,108860.0,2.0978738]
[1748400143127,0.00460209,108870.0,108860.0,1.8478738]
[1748400143933,0.00460209,108870.0,108860.0,1.96952692]
[1748400144226,0.00460209,108870.0,108860.0,1.8478738]
[1748400146024,0.03500209,108870.0,108860.0,1.8478738]
[1748400146331,0.00460209,108870.0,108860.0,1.8478738]
[1748400146534,0.00460209,108870.0,108860.0,1.91651896]
[1748400146835,0.00448209,108870.0,108860.0,2.03817208]
[1748400147036,0.00448209,108870.0,108860.0,2.03816439]
[1748400147233,0.00460209,108870.0,108860.0,1.91651127]
[1748400147433,0.00460209,108870.0,108860.0,1.91551127]
[1748400147928,0.00460209,108870.0,108860.0,1.82365527]
[1748400148133,0.03500209,108870.0,108860.0,1.82365527]
[1748400148332,0.00460209,108870.0,108860.0,1.75501011]
[1748400149348,0.00460209,108870.0,108860.0,1.95650017]
[1748400149639,0.03500209,108870.0,108860.0,1.95650017]
[1748400150035,0.03500209,108870.0,108860.0,1.75501011]
[1748400150726,0.57941899,108870.0,108860.0,0.95737011]
[1748400150931,0.25051899,108870.0,108860.0,1.44731465]
[1748400151236,0.25051899,108870.0,108860.0,1.42010941]
[1748400151439,0.06690209,108870.0,108860.0,1.80647187]
[1748400154137,0.06690209,108870.0,108860.0,1.26471187]
[1748400154338,0.06690209,108870.0,108860.0,1.80595187]
[1748400156346,0.25051899,108870.0,108860.0,1.44483187]
[1748400156541,0.25051899,108870.0,108860.0,0.90391187]
[1748400156749,0.25051899,108870.0,108860.0,1.44483187]
[1748400157246,0.25051899,108870.0,108860.0,1.47203187]
[1748400157837,0.25051899,108870.0,108860.0,1.44646547]
[1748400158841,0.06690209,108870.0,108860.0,1.44646547]
[1748400159335,0.25051899,108870.0,108860.0,1.01210547]
[1748400159533,0.06690209,108870.0,108860.0,1.44594547]
[1748400159941,0.06690209,108870.0,108860.0,1.44595933]
[1748400161542,0.06690209,108870.0,108860.0,0.90555933]
[1748400161543,0.25051899,108870.0,108860.0,0.90555933]
[1748400161744,0.25051899,108870.0,108860.0,1.32398621]
[1748400162107,0.00460209,108870.0,108860.0,1.77664221]
[1748400162259,0.00460209,108870.0,108860.0,1.72189767]
[1748400162457,0.00448209,108870.0,108860.0,3.22189767]
[1748400162655,0.00460209,108870.0,108860.0,3.19868683]
[1748400162860,0.03760209,108870.0,108860.0,3.19868683]
[1748400163052,0.06760209,108870.0,108860.0,3.19868683]
[1748400163454,0.03760209,108870.0,108860.0,3.31933995]
[1748400163651,0.03760209,108870.0,108860.0,3.44199307]
[1748400163851,0.03760209,108870.0,108860.0,3.4420418]
[1748400164647,0.03760209,108870.0,108860.0,3.32038868]
[1748400165551,0.03760209,108870.0,108860.0,3.31938868]
[1748400165947,0.03760209,108870.0,108860.0,3.4420418]
[1748400166451,0.03760209,108870.0,108860.0,3.32038868]
[1748400168040,0.03760209,108870.0,108860.0,3.4016718]
[1748400169069,0.03760209,108870.0,108860.0,3.28001868]
[1748400169262,0.03760209,108870.0,108860.0,3.18176357]
[1748400169447,0.03760209,108870.0,108860.0,3.30341669]
[1748400170449,0.03760209,108870.0,108860.0,3.45383711]
[1748400170659,0.03760209,108870.0,108860.0,3.40217956]
[1748400171152,0.03760209,108870.0,108860.0,3.28052644]
[1748400171456,0.03760209,108870.0,108860.0,3.40217956]
[1748400172652,0.03760209,108870.0,108860.0,3.32049957]
[1748400174255,0.0347,108880.0,108870.0,0.1836169]
[1748400174466,0.0347,108880.0,108870.0,1.19339515]
[1748400174663,0.03482,108880.0,108870.0,1.23787375]
[1748400174868,0.0347,108880.0,108870.0,1.48117999]
[1748400175065,0.03482,108880.0,108870.0,1.48117999]
[1748400175259,0.03482,108880.0,108870.0,1.42620174]
[1748400175650,0.03582,108880.0,108870.0,1.35951431]
[1748400176160,0.03582,108880.0,108870.0,1.35950973]
[1748400176457,0.03582,108880.0,108870.0,1.36050973]
[1748400176654,0.03482,108880.0,108870.0,1.36050973]
[1748400177557,0.06612,108880.0,108870.0,1.36050973]
[1748400177761,0.06612,108880.0,108870.0,1.48216285]
[1748400177967,0.00302,108880.0,108870.0,1.48216285]
[1748400178257,0.00302,108880.0,108870.0,1.63841817]
[1748400178459,0.0342,108880.0,108870.0,1.63841817]
[1748400178757,0.03432,108880.0,108870.0,1.63841817]
[1748400179650,0.03432,108880.0,108870.0,1.55673818]
[1748400180052,0.03432,108880.0,108870.0,1.31343194]
[1748400180248,0.00302,108880.0,108870.0,1.55673818]
[1748400180559,0.0306,108890.0,108880.0,0.1836001]
[1748400180560,0.0608,108890.0,108880.0,0.1836001]
[1748400180762,0.2443832,108890.0,108880.0,1.47605914]
[1748400181064,0.06092,108890.0,108880.0,1.60098385]
[1748400181276,0.06092,108890.0,108880.0,1.02197779]
[1748400181455,0.06092,108890.0,108880.0,1.60377779]
[1748400181657,0.06092,108890.0,108880.0,1.68525604]
[1748400181853,0.06092,108890.0,108880.0,1.67151719]
[1748400182262,0.2445032,108890.0,108880.0,0.98214106]
[1748400182453,0.2445032,108890.0,108880.0,1.56362106]
[1748400182964,0.2445032,108890.0,108880.0,1.36342106]
[1748400183361,0.2445032,108890.0,108880.0,0.72463514]
[1748400183575,0.72695632,108890.0,108880.0,0.23938192]
[1748400183795,1.41879632,108890.0,108880.0,0.25123723]
[1748400184085,1.46174763,108890.0,108880.0,0.18810754]
[1748400184257,1.47174763,108890.0,108880.0,0.18810754]
[1748400184455,1.47174978,108890.0,108880.0,0.18810571]
[1748400185066,1.48023187,108890.0,108880.0,0.18810571]
[1748400185659,1.48023187,108890.0,108880.0,0.30261296]
[1748400185960,1.48423187,108890.0,108880.0,0.23062768]
[1748400186662,1.49360914,108890.0,108880.0,0.23062768]
[1748400187476,0.98900256,108890.0,108880.0,0.41422778]
[1748400187767,1.27900256,108890.0,108880.0,0.23062768]
[1748400188071,1.40065568,108890.0,108880.0,0.23062768]
[1748400188457,1.40065568,108890.0,108880.0,0.41422768]
[1748400188662,1.40065568,108890.0,108880.0,0.41421669]
[1748400188967,1.40065568,108890.0,108880.0,0.23061669]
[1748400189266,1.15065568,108890.0,108880.0,0.23061669]
[1748400192868,1.15065568,108890.0,108880.0,0.21001033]
[1748400193074,1.15065568,108890.0,108880.0,0.23060974]
[1748400194563,1.05881568,108890.0,108880.0,0.16059941]
[1748400196061,1.15065568,108890.0,108880.0,0.16059941]
[1748400196466,1.15065568,108890.0,108880.0,0.14]
[1748400196965,1.15065568,108890.0,108880.0,0.16059941]
[1748400197171,1.15065568,108890.0,108880.0,0.14]
[1748400197469,1.15065568,108890.0,108880.0,0.16059372]
[1748400198667,1.05881568,108890.0,108880.0,0.16059372]
[1748400200573,1.05881568,108890.0,108880.0,0.14]
[1748400201277,1.05881568,108890.0,108880.0,0.16059372]
[1748400201577,1.05881568,108890.0,108880.0,0.14]
[1748400201776,1.05881568,108890.0,108880.0,0.16059112]
[1748400202970,1.05881568,108890.0,108880.0,0.16037505]
[1748400203970,1.05881568,108890.0,108880.0,0.13978393]
[1748400206270,1.17469568,108890.0,108880.0,0.13978393]
[1748400207371,1.21760237,108890.0,108880.0,0.13978393]
[1748400207880,0.77304256,108890.0,108880.0,0.16038197]
[1748400208078,0.62716256,108890.0,108880.0,0.37578227]
[1748400208273,0.65716256,108890.0,108880.0,0.40808227]
[1748400208479,0.65704256,108890.0,108880.0,0.52973539]
[1748400208680,0.61718529,108890.0,108880.0,0.52973539]
[1748400208886,0.58686529,108890.0,108880.0,1.33321539]
[1748400209086,0.19618559,108890.0,108880.0,1.43071408]
[1748400209289,0.19618559,108890.0,108880.0,1.4258144]
[1748400209290,0.01260209,108890.0,108880.0,1.4258144]
[1748400209480,0.01248209,108890.0,108880.0,1.41203514]
[1748400209777,0.101,108900.0,108890.0,0.1835835]
[1748400209972,0.101,108900.0,108890.0,1.06359607]
[1748400210370,0.0511,108900.0,108890.0,1.06359607]
[1748400210573,0.2346666,108900.0,108890.0,1.06059607]
[1748400210776,0.0511,108900.0,108890.0,1.06059607]
[1748400211273,0.05222,108900.0,108890.0,1.06059607]
[1748400211479,0.05222,108900.0,108890.0,1.07341657]
[1748400211978,0.05222,108900.0,108890.0,1.05959607]
[1748400212174,0.05222,108900.0,108890.0,1.00466007]
[1748400212572,0.2357866,108900.0,108890.0,1.00466007]
[1748400212983,0.2357866,108900.0,108890.0,0.57300695]
[1748400213165,0.5965866,108900.0,108890.0,0.66466007]
[1748400213368,0.5965866,108900.0,108890.0,0.92112844]
[1748400213573,0.6615866,108900.0,108890.0,0.95182844]
[1748400213770,0.6615866,108900.0,108890.0,0.49902844]
[1748400213986,1.11323972,108900.0,108890.0,0.9951289]
[1748400214183,0.9915866,108900.0,108890.0,0.97814134]
[1748400214481,0.99606869,108900.0,108890.0,0.93725985]
[1748400215069,0.69606869,108900.0,108890.0,0.93725985]
[1748400215269,0.69606869,108900.0,108890.0,0.97846134]
[1748400216074,0.69606869,108900.0,108890.0,0.52530134]
[1748400216274,0.69606869,108900.0,108890.0,1.10019446]
[1748400216878,0.69594869,108900.0,108890.0,1.10019446]
[1748400217081,0.69606869,108900.0,108890.0,1.10019446]
[1748400217589,0.69606869,108900.0,108890.0,1.48019446]
[1748400218079,0.69606869,108900.0,108890.0,1.10019446]
[1748400218991,0.63106869,108900.0,108890.0,1.10019446]
[1748400219286,0.60106869,108900.0,108890.0,1.10019446]
[1748400220775,0.66196869,108900.0,108890.0,1.0302331]
[1748400222090,0.66196869,108900.0,108890.0,0.5769931]
[1748400222283,0.66196869,108900.0,108890.0,1.0297931]
[1748400227182,0.66196869,108900.0,108890.0,0.5769931]
[1748400227492,0.66196869,108900.0,108890.0,0.98763161]
[1748400227707,0.78362181,108900.0,108890.0,0.16725499]
[1748400227883,1.56542181,108900.0,108890.0,0.16036873]
[1748400230423,1.02196869,108900.0,108890.0,0.34395223]
[1748400230813,1.02196869,108900.0,108890.0,0.41391359]
[1748400232495,1.02196869,108900.0,108890.0,0.44138465]
[1748400232683,0.79362181,108900.0,108890.0,0.44138465]
[1748400233084,0.79362181,108900.0,108890.0,0.41391359]
[1748400234096,0.67196869,108900.0,108890.0,0.44138465]
[1748400234789,0.48828209,108900.0,108890.0,0.44138465]
[1748400234987,0.48828209,108900.0,108890.0,0.45309985]
[1748400235185,0.48840209,108900.0,108890.0,0.48599985]
[1748400235385,0.67196869,108900.0,108890.0,0.57168467]
[1748400235790,0.67196869,108900.0,108890.0,0.50172331]
[1748400235990,0.67184869,108900.0,108890.0,0.50172331]
[1748400236686,0.67196869,108900.0,108890.0,0.50172331]
[1748400237298,0.67196869,108900.0,108890.0,0.3139722]
[1748400237494,0.67196869,108900.0,108890.0,0.3339722]
[1748400239195,0.67196869,108900.0,108890.0,0.3010722]
[1748400239598,0.67196869,108900.0,108890.0,0.30109839]
[1748400240708,1.16362181,108900.0,108890.0,0.13318207]
[1748400241290,1.16362181,108900.0,108890.0,0.13319392]
[1748400241496,0.1835845,108890.0,108880.0,0.7108286]
[1748400241697,0.6400845,108890.0,108880.0,0.8869286]
[1748400242590,0.6400845,108890.0,108880.0,0.8906886]
[1748400243009,0.6400845,108890.0,108880.0,1.01246172]
[1748400243197,0.6400845,108890.0,108880.0,1.04496172]
[1748400244191,0.6400845,108890.0,108880.0,1.04296172]
[1748400245195,0.6400845,108890.0,108880.0,1.04096172]
[1748400245390,0.6400845,108890.0,108880.0,1.04196172]
[1748400245907,0.64456659,108890.0,108880.0,1.40196172]
[1748400246505,0.64456659,108890.0,108880.0,1.04196172]
[1748400250307,0.64456659,108890.0,108880.0,0.9203086]
[1748400251411,0.64456659,108890.0,108880.0,0.9645317]
[1748400252315,0.64456659,108890.0,108880.0,0.96453067]
[1748400254413,0.64556659,108890.0,108880.0,0.96453067]
[1748400254603,0.64556659,108890.0,108880.0,0.96353067]
[1748400256613,0.64556659,108890.0,108880.0,0.9193086]
[1748400256813,0.64556659,108890.0,108880.0,0.96353865]
[1748400257112,0.78721971,108890.0,108880.0,0.23256949]
[1748400257311,1.11721971,108890.0,108880.0,0.83343079]
[1748400257510,1.11721971,108890.0,108880.0,0.38367079]
[1748400258308,1.11721971,108890.0,108880.0,0.41617079]
[1748400259011,1.10721971,108890.0,108880.0,0.3136013]
[1748400259215,1.10721971,108890.0,108880.0,0.35783947]
[1748400260317,1.10721971,108890.0,108880.0,0.17423817]
[1748400260619,1.10721971,108890.0,108880.0,0.3836832]
[1748400260620,1.02856599,108890.0,108880.0,0.3836832]
[1748400260809,1.15021911,108890.0,108880.0,0.3836832]
[1748400261417,1.15021911,108890.0,108880.0,0.42495526]
[1748400264423,1.10721971,108890.0,108880.0,0.39907377]
[1748400265506,0.98556659,108890.0,108880.0,0.39907377]
[1748400265712,1.10721971,108890.0,108880.0,0.39907377]
[1748400266316,1.15022936,108890.0,108880.0,0.21547247]
[1748400266518,1.10721971,108890.0,108880.0,0.21547247]
[1748400266721,1.15022936,108890.0,108880.0,0.39907377]
[1748400267022,1.18022936,108890.0,108880.0,0.39907377]
[1748400267222,1.13721971,108890.0,108880.0,0.39907377]
[1748400268314,1.01556659,108890.0,108880.0,0.39907377]
[1748400268617,1.13721971,108890.0,108880.0,0.39907377]
[1748400268919,1.13721971,108890.0,108880.0,0.21547247]
[1748400269619,1.13721971,108890.0,108880.0,0.21547243]
[1748400271652,1.19448502,108890.0,108880.0,0.02062354]
[1748400272233,1.27986786,108890.0,108880.0,0.07002894]
[1748400272427,0.1836013,108880.0,108870.0,0.09778199]
[1748400272742,1.67849621,108880.0,108870.0,0.11028712]
[1748400273314,1.67849621,108880.0,108870.0,0.11028711]
[1748400273532,1.63549973,108880.0,108870.0,0.11028711]
[1748400273716,1.67848023,108880.0,108870.0,0.11028711]
[1748400274027,1.62121492,108880.0,108870.0,0.11028711]
[1748400274227,1.67848023,108880.0,108870.0,0.11128711]
[1748400274418,1.62121492,108880.0,108870.0,0.11128711]
[1748400274823,1.62121492,108880.0,108870.0,0.11028711]
[1748400275023,1.62121492,108880.0,108870.0,0.04025817]
[1748400275214,1.67848023,108880.0,108870.0,0.11028711]
[1748400275422,1.62569701,108880.0,108870.0,0.11028711]
[1748400276015,1.62669701,108880.0,108870.0,0.04025817]
[1748400276419,1.62221492,108880.0,108870.0,0.04025817]
[1748400277021,1.73513492,108880.0,108870.0,0.04025817]
[1748400277223,1.79240023,108880.0,108870.0,0.04025817]
[1748400277424,1.79240023,108880.0,108850.0,0.13879587]
[1748400277425,1.46771955,108880.0,108850.0,0.13879587]
[1748400277620,1.02688812,108860.0,108850.0,0.08002894]
[1748400277816,1.95087506,108860.0,108850.0,0.01]
[1748400278032,2.04347506,108860.0,108850.0,0.01012]
[1748400278331,2.00052812,108860.0,108850.0,0.01012]
[1748400278633,1.93756812,108860.0,108850.0,0.01012]
[1748400278929,1.93756812,108860.0,108850.0,0.0406]
[1748400278930,1.91756812,108860.0,108850.0,0.0406]
[1748400279131,1.92685291,108860.0,108850.0,0.04072]
[1748400279427,1.62685291,108860.0,108850.0,0.04072]
[1748400279815,1.50519979,108860.0,108850.0,0.04072]
[1748400280034,1.00711979,108860.0,108850.0,0.2263719]
[1748400280321,1.17889291,108860.0,108850.0,0.2588719]
[1748400280523,1.16889291,108860.0,108850.0,0.2588719]
[1748400280827,1.16889291,108860.0,108850.0,0.2608719]
[1748400281725,1.17889291,108860.0,108850.0,0.2608719]
[1748400291244,1.17889291,108860.0,108850.0,0.07722]
[1748400291644,1.183375,108860.0,108850.0,0.2608718]
[1748400292544,1.17889291,108860.0,108850.0,0.2608718]
[1748400295637,1.05723979,108860.0,108850.0,0.2608718]
[1748400295839,1.17889291,108860.0,108850.0,0.2608718]
[1748400296857,1.17889291,108860.0,108850.0,0.07722]
[1748400297246,1.17889291,108860.0,108850.0,0.2608718]
[1748400299551,1.17889291,108860.0,108850.0,0.2588718]
[1748400299851,1.17989291,108860.0,108850.0,0.2568718]
[1748400300346,1.22276209,108860.0,108850.0,0.2568718]
[1748400301246,1.22276209,108860.0,108850.0,0.28436667]
[1748400301453,1.22287315,108860.0,108850.0,0.28436667]
[1748400302748,1.22287315,108860.0,108850.0,0.06821487]
[1748400303053,1.49287315,108860.0,108850.0,0.03761487]
[1748400303249,1.49287315,108860.0,108850.0,0.06871487]
[1748400303447,1.49288848,108860.0,108850.0,0.06859487]
[1748400303649,1.49288848,108860.0,108850.0,0.06871487]
[1748400303844,1.49288848,108860.0,108850.0,0.06859487]
[1748400303845,1.49276848,108860.0,108850.0,0.06859487]
[1748400304238,1.49336846,108860.0,108850.0,0.06919487]
[1748400306354,1.55063377,108860.0,108850.0,0.06919487]
[1748400307348,1.5076382,108860.0,108850.0,0.06919487]
[1748400308343,1.5076382,108860.0,108850.0,0.03809487]
[1748400308756,1.50703822,108860.0,108850.0,0.03809487]
[1748400308950,1.50703822,108860.0,108850.0,0.03761487]
[1748400309345,1.5076382,108860.0,108850.0,0.03761487]
[1748400309957,1.55069565,108860.0,108850.0,0.15246377]
[1748400310864,1.55069565,108860.0,108850.0,0.08243483]
[1748400311259,1.55069565,108860.0,108850.0,0.15248748]
[1748400311956,1.5076382,108860.0,108850.0,0.15250254]
[1748400312154,1.55069269,108860.0,108850.0,0.08243483]
[1748400312463,1.5076382,108860.0,108850.0,0.15248706]
[1748400312663,1.55069268,108860.0,108850.0,0.08243483]
[1748400313256,1.5076382,108860.0,108850.0,0.10826118]
[1748400313763,1.50703822,108860.0,108850.0,0.10814118]
[1748400314063,1.50703822,108860.0,108850.0,0.10754118]
[1748400314448,1.5076382,108860.0,108850.0,0.10814118]
[1748400315261,1.38598508,108860.0,108850.0,0.10814118]
[1748400315458,1.5076382,108860.0,108850.0,0.10814118]
[1748400316551,1.62761973,108860.0,108850.0,0.0006]
[1748400316865,1.41410261,108860.0,108850.0,0.0006]
[1748400317071,1.41410261,108860.0,108850.0,0.07064631]
[1748400317072,2.15147697,108860.0,108850.0,0.07064631]
[1748400317564,2.14147697,108860.0,108850.0,0.07076631]
[1748400318672,2.14075699,108860.0,108850.0,0.10284631]
[1748400319165,2.14135697,108860.0,108850.0,0.10344631]
[1748400322463,2.05477413,108860.0,108850.0,0.28709711]
[1748400322655,2.09780672,108860.0,108850.0,0.16214118]
[1748400322970,2.09792672,108860.0,108850.0,0.16214118]
[1748400323661,2.09720674,108860.0,108850.0,0.16154118]
[1748400324050,2.09720674,108860.0,108850.0,0.16214118]
[1748400324261,2.09780672,108860.0,108850.0,0.16214118]
[1748400325062,1.78708672,108860.0,108850.0,0.16214118]
[1748400325264,2.12708672,108860.0,108850.0,0.16214118]
[1748400325668,2.12708672,108860.0,108850.0,0.21636569]
[1748400328469,2.12708672,108860.0,108850.0,0.18516569]
[1748400328669,2.12648674,108860.0,108850.0,0.18516569]
[1748400328868,1.68172953,108860.0,108850.0,0.18456569]
[1748400329170,2.12636951,108860.0,108850.0,0.21466569]
[1748400329360,2.12636951,108860.0,108850.0,0.21526569]
[1748400332362,2.12636951,108860.0,108850.0,0.23589945]
[1748400332663,2.12636951,108860.0,108850.0,0.20579945]
[1748400333156,2.12637208,108860.0,108850.0,0.20581113]
[1748400333359,2.12637208,108860.0,108850.0,0.13576482]
[1748400333964,2.08273415,108860.0,108850.0,0.16100456]
[1748400334353,2.08333413,108860.0,108850.0,0.09152864]
[1748400335078,1.96168101,108860.0,108850.0,0.09152864]
[1748400335268,2.08333413,108860.0,108850.0,0.09152864]
[1748400335459,2.08333413,108860.0,108850.0,0.12442864]
[1748400336167,1.96168101,108860.0,108850.0,0.12442864]
[1748400336387,2.08333413,108860.0,108850.0,0.12442864]
[1748400337062,1.96168101,108860.0,108850.0,0.12442864]
[1748400337266,2.08333413,108860.0,108850.0,0.12442864]
[1748400337470,2.08333413,108860.0,108850.0,0.1244293]
[1748400338872,2.08273415,108860.0,108850.0,0.1238293]
[1748400339261,2.08333413,108860.0,108850.0,0.1244293]